Cogmind - Beta 11.1 @@@ ROGUE MODE // 2022.11.01 @ 00:30:55 Player: JoshKwa Result: Destroyed by Y-45 Defender with Beam Rifle Performance ------------- Evolutions (1) 500 Regions Visited (3) 600 Robots Destroyed (10) 50 Value Destroyed (266) 266 Prototype IDs (0) 0 Alien Tech Used (0) 0 Bonus (0) 0 TOTAL SCORE: 1416 Bonus ------- None Cogmind --------- Core Integrity 0/400 Matter 300/300 Energy 100/100 System Corruption 3% Temperature Cool (9) Movement Core (100) Ox1 Location -9/Materials Parts ------- > --- POWER (2) -------- (None) > --- PROPULSION (2) --- (None) > --- UTILITY (3) ------ Small Storage Unit > --- WEAPON (2) ------- (None) > --- INVENTORY (8) ---- (None) Peak State ------------ > --- POWER ------------ Light Ion Engine Light Ion Engine > --- PROPULSION ------- Light Treads Light Treads > --- UTILITY ---------- Small Storage Unit Core Shielding > --- WEAPON ----------- Assault Rifle Light Assault Rifle > --- INVENTORY -------- (None) [Rating: 8] Favorites ----------- Power Light Ion Engine Engine Light Ion Engine Propulsion Light Treads Treads Light Treads Utility Small Storage Unit Storage Small Storage Unit Protection Core Shielding Weapon Assault Rifle Energy Gun EM Pulse Gun Ballistic Gun Assault Rifle Build | -11 -10 -10 -9 ------- Run | Scr Mat Min Mat Slots Evolved 2 | . . . 2 Power 1 | . . . 1 Propulsion . | . . . . Utility 1 | . . . 1 Weapon . | . . . . Parts Attached 11 | 6 1 2 2 Power 3 | 1 . 1 1 Engine 3 | 1 . 1 1 Core . | . . . . Reactor . | . . . . Propulsion 2 | 2 . . . Treads 2 | 2 . . . Leg . | . . . . Wheel . | . . . . Hover . | . . . . Flight . | . . . . Utility 2 | 1 1 . . Device . | . . . . Storage 1 | 1 . . . Processor . | . . . . Hackware . | . . . . Protection 1 | . 1 . . Artifact . | . . . . Weapon 4 | 2 . 1 1 Energy Gun 2 | 1 . . 1 Energy Cannon . | . . . . Ballistic Gun 2 | 1 . 1 . Ballistic Cannon . | . . . . Launcher . | . . . . Special Weapon . | . . . . Impact Weapon . | . . . . Slashing Weapon . | . . . . Piercing Weapon . | . . . . Special Melee Weapon . | . . . . Unidentified Prototypes . | . . . . Parts Lost 9 | . 1 . 8 Power 2 | . . . 2 Propulsion 2 | . . . 2 Utility 1 | . . . 1 Weapon 4 | . 1 . 3 Highest Loss Streak 8 | . 1 . 8 To Critical Strikes . | . . . . Average Slot Usage (%) 89 | . 95 94 57 Engine 13 | . 14 14 12 Treads 25 | . 28 28 10 Storage 13 | . 14 14 11 Protection 12 | . 12 14 8 Energy Gun 4 | . 11 . 2 Ballistic Gun 17 | . 14 22 12 Naked Turns . | . . . . Heaviest Build 15 | 12 13 12 15 Greatest Support 40 | 40 40 40 40 Greatest Overweight (x) 2 | . . . 2 Average Overweight (x) . | . . . . Largest Inventory Capacity 8 | 8 8 8 8 Average Capacity 7 | 6 8 8 8 Most Carried 5 | 5 1 2 1 Average Carried . | . . . . Final Capacity 8 | 8 8 8 8 Final Carried 1 | . 1 1 . Class Distribution -------------------- 100% | Mutant Dominant Class ---------------- Mutant | -10/Materials Mutant | -10/Mines Mutant | -9/Materials Resources | -11 -10 -10 -9 ----------- Run | Scr Mat Min Mat Matter Collected 375 | 211 77 87 . Remotely . | . . . . Salvage Created 413 | . 239 139 35 Parts 17 | . 9 7 1 Haulers Intercepted . | . . . . Recyclers Shooed 3 | . 1 2 . Parts Field Recycled . | . . . . Retrieved Matter . | . . . . Parts Self-Destructed . | . . . . Prevented . | . . . . Kills | -11 -10 -10 -9 ------- Run | Scr Mat Min Mat Combat Hostiles Destroyed 9 | . 5 3 1 Guns 9 | . 5 3 1 Classes Destroyed 3 | . 1 2 . Recycler 1 | . . 1 . Swarmer 3 | . . 3 . Grunt 6 | . 5 . 1 Best Kill Streak 3 | . 3 3 1 Combat Bots Only 3 | . 3 3 1 Max Kills in Single Turn 1 | . 1 1 1 Gunslinging . | . . . . Exploded . | . . . . Melee . | . . . . Uniques/NPCs Destroyed . | . . . . Combat | -11 -10 -10 -9 -------- Run | Scr Mat Min Mat Damage Taken 1319 | . 343 76 900 Core 442 | . 40 . 402 Absorbed by Shields . | . . . . Redirected to Shielding 51 | . 9 . 42 Core Remaining (%) 92 | 100 . 84 . Volleys Fired 44 | . 20 10 14 Largest 2 | . 2 1 2 Hottest 60 | . 60 20 40 Shots Fired 65 | . 38 10 17 Gun 65 | . 38 10 17 Cannon . | . . . . Launcher . | . . . . Special . | . . . . Kinetic 36 | . 20 10 6 Thermal 11 | . . . 11 Explosive . | . . . . Electromagnetic 18 | . 18 . . Robot Hit Streak 8 | . 8 3 5 Robot Miss Streak 4 | . 4 2 1 Penetration Max . | . . . . Secondary Targets 2 | . 1 . 1 Max Gunslinging Chain 1 | . 1 . 1 Shots Hit Robots 45 | . 25 6 14 Core Hits 22 | . 11 7 4 Critical Kills . | . . . . Critical Parts Destroyed . | . . . . Critical Strikes . | . . . . Melee Attacks . | . . . . Impact . | . . . . Slashing . | . . . . Piercing . | . . . . Sneak Attacks . | . . . . Combat Hostiles . | . . . . Follow-up Attacks . | . . . . Damage Inflicted 647 | . 362 79 206 Guns 596 | . 356 75 165 Cannons . | . . . . Explosions . | . . . . Melee . | . . . . Ramming 51 | . 6 4 41 Kinetic 327 | . 195 75 57 Thermal 108 | . . . 108 Explosive . | . . . . Electromagnetic 161 | . 161 . . Impact . | . . . . Slashing . | . . . . Piercing . | . . . . Highest Corruption 3 | . . . 3 Average Corruption 1 | . . . 1 Corruption Purged . | . . . . Corruption Blocked . | . . . . Overload Shots . | . . . . Overflow Damage . | . . . . Projectiles . | . . . . Explosions . | . . . . Melee . | . . . . Knockbacks . | . . . . Impact . | . . . . Kinetic . | . . . . Secondary . | . . . . Self-Inflicted Damage 19 | . . . 19 Shots . | . . . . Rammed 23 | . 3 2 18 Targets Rammed 23 | . 3 2 18 Kicked . | . . . . Crushed . | . . . . Highest Temperature 49 | . 24 . 49 Average Temperature 12 | . 12 . 10 Received Heat Transfer 513 | . 198 . 315 Siege Activations . | . . . . Robots Corrupted . | . . . . Combat Hostiles . | . . . . Parts Fried . | . . . . Impact Corruptions . | . . . . Robots Melted . | . . . . Combat Hostiles . | . . . . Parts Melted . | . . . . Heat Transferred 250 | . . . 250 Parts Sabotaged . | . . . . Parts Stolen . | . . . . Parts Stripped . | . . . . Power Chain Reactions . | . . . . Missiles Intercepted . | . . . . Alert | -11 -10 -10 -9 ------- Run | Scr Mat Min Mat Peak Influence 170 | . 170 141 79 Initial 66 | . . 66 54 Average 88 | . 84 120 40 Maximum Alert Level . | . . . . Low Security (%) 100 | 100 100 100 100 Level 1 . | . . . . Level 2 . | . . . . Level 3 . | . . . . Level 4 . | . . . . Level 5 . | . . . . High Security . | . . . . Max Security . | . . . . Squads Dispatched 1 | . 1 . . Investigation . | . . . . Extermination . | . . . . Reinforcement 1 | . 1 . . Assault . | . . . . Garrison . | . . . . Intercept . | . . . . Searches Triggered . | . . . . Construction Impeded . | . . . . Haulers Reinforced . | . . . . Active Scanning Responses . | . . . . Cargo Convoy Interrupts . | . . . . Stealth | -11 -10 -10 -9 --------- Run | Scr Mat Min Mat Distress Signals . | . . . . Communications Jammed . | . . . . Distress Signals . | . . . . Times Spotted 20 | . 12 3 5 Peak Tracking Total 6 | . 5 3 6 Tactical Retreats 1 | . 1 . . Traps | -11 -10 -10 -9 ------- Run | Scr Mat Min Mat Traps Triggered . | . . . . Indirectly . | . . . . Trap Hack Attempts . | . . . . Triggered . | . . . . Disarmed . | . . . . Reprogrammed . | . . . . Reused . | . . . . Traps Extracted . | . . . . Installed . | . . . . Triggered . | . . . . Machines | -11 -10 -10 -9 ---------- Run | Scr Mat Min Mat Machines Disabled . | . . . . Max in Single Turn . | . . . . Machines Sabotaged . | . . . . Garrisons Compromised . | . . . . Overloaded Fab Kills . | . . . . Hacking | -11 -10 -10 -9 --------- Run | Scr Mat Min Mat Machines Accessed 1 | . 1 . . Terminals 1 | . 1 . . Fabricators . | . . . . Repair Stations . | . . . . Recycling Units . | . . . . Scanalyzers . | . . . . Garrison Access . | . . . . Total Hacks 1 | . 1 . . Successful 1 | . 1 . . Failed . | . . . . Catastrophic . | . . . . Database Lockouts . | . . . . Manual . | . . . . Terminals 1 | . 1 . . Fabricators . | . . . . Repair Stations . | . . . . Recycling Units . | . . . . Scanalyzers . | . . . . Garrison Access . | . . . . Terminal Hacks 1 | . 1 . . Dispatch Records 1 | . 1 . . Fabricator Hacks . | . . . . Repair Station Hacks . | . . . . Recycling Unit Hacks . | . . . . Scanalyzer . | . . . . Garrison Access Hacks . | . . . . Unauthorized Hacks . | . . . . Terminals . | . . . . Fabricators . | . . . . Repair Stations . | . . . . Recycling Units . | . . . . Scanalyzers . | . . . . Garrison Access . | . . . . Data Cores Recovered . | . . . . Used . | . . . . Hacking Detections 1 | . 1 . . Full Trace Events . | . . . . Feedback Events . | . . . . Feedback Blocked . | . . . . Robot Schematics Acquired . | . . . . Robots Built . | . . . . Authchips . | . . . . Time . | . . . . Total Robot Build Rating . | . . . . Part Schematics Acquired . | . . . . Parts Built . | . . . . Authchips . | . . . . Time . | . . . . Total Part Build Rating . | . . . . Parts Repaired . | . . . . Time . | . . . . Parts Recycled . | . . . . Recycled Matter . | . . . . Retrieved Matter . | . . . . Retrieved Components . | . . . . Parts Scanalyzed . | . . . . Part Schematics Acquired . | . . . . Parts Damaged . | . . . . Bothacking | -11 -10 -10 -9 ------------ Run | Scr Mat Min Mat Used RIF Installer . | . . . . Robots Hacked . | . . . . Non-combat . | . . . . Combat . | . . . . Robot Hacks Applied . | . . . . Relay Couplers Released . | . . . . Fabnet Peak Effective % . | . . . . Robots Rewired . | . . . . Allies Hacked . | . . . . Hacks Repelled . | . . . . Allies | -11 -10 -10 -9 -------- Run | Scr Mat Min Mat Total Allies . | . . . . Largest Group . | . . . . Highest-Rated Group . | . . . . Highest-Rated Ally . | . . . . Total Orders . | . . . . Ally Attacks . | . . . . Total Damage . | . . . . Kills . | . . . . Allies Corrupted . | . . . . Allies Melted . | . . . . Intel | -11 -10 -10 -9 ------- Run | Scr Mat Min Mat Robot Analysis Total . | . . . . Derelict Logs Recovered 1 | . . 1 . Drone Launches . | . . . . Drone Recoveries . | . . . . Exploration | -11 -10 -10 -9 ------------- Run | Scr Mat Min Mat Turns Passed 824 | 58 282 364 120 Spaces Moved 423 | 39 135 209 40 Core 20 | 14 . . 6 Treads 403 | 25 135 209 34 Legs . | . . . . Wheels . | . . . . Hover . | . . . . Flight . | . . . . Fastest Speed 50 | 50 160 160 100 Average Speed 155 | 120 160 160 153 Slowest Speed 160 | 160 160 160 160 Overloaded Moves . | . . . . Propulsion Burnouts . | . . . . Robots Hopped . | . . . . Cave-ins Triggered . | . . . . Exploration Rate (%) 23 | 3 41 46 5 Regions Visited 3 Branch Regions 1 Pre-discovered Areas 1 | . . 1 . Known Exits Taken . | . . . . Unknown Exits Taken 3 | 1 1 1 . Scrap Searched . | . . . . Spaces Dug . | . . . . Terrain Destroyed . | . . . . Melee . | . . . . Projectile . | . . . . AOE . | . . . . Terrain Rammed . | . . . . Walls Destroyed . | . . . . Machines Disabled . | . . . . Actions | -11 -10 -10 -9 --------- Run | Scr Mat Min Mat Total 523 | 50 162 229 82 Wait 7 | . . . 7 Move 420 | 38 134 208 40 Hop . | . . . . Pick Up 14 | 6 3 4 1 Fast Attach . | . . . . Attach 10 | 6 1 1 2 Detach . | . . . . Swap 1 | . . 1 . Drop 4 | . 1 3 . Fire 44 | . 20 10 14 Melee . | . . . . Ram 18 | . . . 18 Kick . | . . . . Crush 5 | . 3 2 . Escape Stasis . | . . . . Rewire . | . . . . Trap . | . . . . Miscellaneous . | . . . . Route ------- -11/Scrapyard -10/Materials -10/Mines -9/Materials History --------- Turn | Location | Event 5 | -11/Scrapyard | Discovered new exit (range 16) 59 | -11/Scrapyard | Entered Materials 215 | -10/Materials | Discovered new exit (range 14) 300 | -10/Materials | Build established: Mutant 341 | -10/Materials | Entered Mines 402 | -10/Mines | Met a Derelict bent on vengeance 424 | -10/Mines | Learned Materials emergency access door positions 641 | -10/Mines | Discovered new exit (range 7) 642 | -10/Mines | Learned location of Storage (-8) 705 | -10/Mines | Entered Materials 705 | -9/Materials | Evolved 2 slots: Power x1, Utility x1 797 | -9/Materials | Core integrity fell below 50% 814 | -9/Materials | Core integrity fell below 20% 825 | -9/Materials | Destroyed by Y-45 Defender with Beam Rifle Last Messages --------------- 00813_ Slammed into Y-45 Defender. 00813_ Destabilizing: System corrupted (+1). 00813_ U-05 Engineer lays Concrete. 00814_ Slammed into Y-45 Defender. 00815_ U-05 Engineer lays Concrete. 00815_ Slammed into Y-45 Defender. 00816_ U-05 Engineer lays Concrete. 00816_ Slammed into Y-45 Defender. 00817_ U-05 Engineer lays Concrete. 00817_ Slammed into Y-45 Defender. 00818_ U-05 Engineer lays Concrete. 00818_ Slammed into Y-45 Defender. 00818_ Destabilizing: Core damaged (-12). 00820_ U-05 Engineer lays Concrete. 00821_ Slammed into Y-45 Defender. 00822_ U-05 Engineer lays Concrete. 00822_ Slammed into Y-45 Defender. 00823_ Destabilizing: System corrupted (+2). 00824_ Slammed into Y-45 Defender. 00825_ U-05 Engineer lays Concrete. Map ----- +----------------------------------------------------+ | ???????????????????????????????????????????????? | | ???????????????????????????????????????????????? | | ???????????????????????????????????????????????? | | ???????????????????????????????????????????????? | | ???????????????????????????????????????????????? | | ???????????????????????????????????????????????? | | ???????????????????????????????????????????????? | | ???????????????????????????????????????????????? | | ???????????????????????????????????????????????? | | ???????????????????????????????????????????????? | | ???????????????????????????????????????????????? | | ???????????????????????????????????????????????? | | ??????????????????????????#####????????????????? | | ????????#?######?????????? ???????????????? | | ????????# #?????????? ????????????????? | | ????????# """ #?????????? ?????????????????? | | ????????# """ !#?????????? #?????????????????? | | ????????# """ #?????????? #?????????????????? | | ?????????? #?????????? #?????????????????? | | ???????????? #????????## ##????????????????? | | ??????????####+########## #????????????????? | | ??????????# #????????????????? | | ??????????# r #????????????????? | | ??????????# r #????????????????? | | ??????????#######;;;;;;;Y #????????????????? | | ???????????????# @;;#??#?????????????????? | | ???????????????# %% #????????????????????? | | ???????????????# % #???####?????????????? | | ???????????????# % # [#???????????? | | ???????????????# %# """"???????????????? | | ???????????????# u % # """"???????????????? | | ???????????????# %%# """????????????????? | | ???????????????# %%% % # """????????????????? | | ???????????????# u %%%%; # """????????????????? | | ???????????????###/###%;; #?"""????????????????? | | ????????????????## # ###??""????????????????? | | ?????????????????# ######??????????????????????? | | ??????+??????????# #???????????????????????????? | | ?????????????????# #???????????????????????????? | | ?????????????????# #???????????????????????????? | | ????????????????? ???????????????????????????? | | ???+????????????? #???????????????????????????? | | ????????????????? ????????????????????????????? | | ????????????????? ????????????????????????????? | | ????????????????? ????????????????????????????? | | ????????????????? ????????????????????????????? | | ????????????????? ????????????????????????????? | | ????????????????? ????????????????????????????? | | ????????????????? ????????????????????????????? | | ???????????????????????????????????????????????? | +----------------------------------------------------+ Best States ------------- Heat Dissipation 28 Energy Generation 15 Energy Capacity 150 Matter Stores 300 Matter Capacity 300 Sight Range 16 Terrain Scan Density 10 Core Shielding 20 Evasion (%) 50 Recoil Reduction 2 Item Schematics ----------------- None Robot Schematics ------------------ None Fabricated ------------ Nothing Alien Tech Used ----------------- None Achievements -------------- None Challenges ------------ None Game ------ Seed BackupGuidedFrame Manual? 0 Play Time 00:06:28 Cumulative 10.4 hours Start 2022.11.01 @ 00:25:31 End 2022.11.01 @ 00:30:55 Sessions 1 Manual Loads 0 Difficulty Rogue Special Mode None Game No. 35 Rogue 35 Adventurer 0 Explorer 0 Win Type - Total 0 Types 0/0/0/0/0/0/0/0/0 Lore% 13 Gallery% 18 Achievement% 16 Wizard Run 0 Options --------- ASCII 0 Keyboard 0 Movement Numpad Keybinds 0 Fullscreen 1 Font 18/SmallcapsGlow Map View 76x50 Tactical HUD 1 Map Filters NONE Filters NONE Steam 1 RUN: b2b50aee-0c6e-4ed7-92e9-ef411b6ad9e8